Cogmind - Beta 13 @@@ ROGUE MODE // 2024.04.09 @ 10:59:49 Player: Kinga Result: Destroyed by H-66 Slayer with Gauss Rifle Performance ------------- Evolutions (5) 2500 Regions Visited (9) 1800 Robots Destroyed (48) 240 Value Destroyed (828) 828 Prototype IDs (5) 100 Alien Tech Used (0) 0 Bonus (300) 300 TOTAL SCORE: 5768 Bonus ------- Aligned with FarCom 300 Cogmind --------- Core Integrity 0/1000 Matter 300/300 Energy 100/100 System Corruption 2% Temperature Cool (0) Movement Core (50) Location -5/Extension Parts ------- > --- POWER (1) -------- (None) > --- PROPULSION (5) --- (None) > --- UTILITY (9) ------ 0b10 Alert Chip Hacking Suite Hacking Suite > --- WEAPON (2) ------- (None) > --- INVENTORY (5) ---- Light Angular Momentum Engine Micro Fission Core Layered Medium Armor Plating Firepult Peak State ------------ > --- POWER ------------ Micro Fission Core > --- PROPULSION ------- Xenon Bombardment Thruster Xenon Bombardment Thruster Xenon Bombardment Thruster Nuclear Pulse Array > --- UTILITY ---------- Experimental Heat Sink Structural Scanner 0b10 Alert Chip Transmission Jammer Improved Reaction Control System Improved Propulsion Shielding Layered Medium Armor Plating Hacking Suite Improved System Shield > --- WEAPON ----------- Field Lobotomy Kit Katana > --- INVENTORY -------- Light Angular Momentum Engine Improved Reaction Control System Firepult [Rating: 85] Favorites ----------- Power Light Nuclear Core Engine Improved Ion Engine Power Core Light Nuclear Core Propulsion Light Treads Treads Light Treads Flight Unit Flight Unit Utility High-capacity Storage Unit Device Structural Scanner Storage High-capacity Storage Unit Processor 0b10 Alert Chip Hackware Hacking Suite Protection Light Armor Plating Weapon Particle Cannon Energy Gun Small Laser Energy Cannon Particle Cannon Ballistic Gun Minigun Launcher Grenade Launcher Special Weapon Field Lobotomy Kit Slashing Weapon Katana Build | -11 -10 -10 -10 -9 -8 -7 -6 -5 -5 ------- Run | Yrd Mat Min Exi Min Mat Fac Fac Fac Ext Slots Evolved 10 | . . . . . 4 2 2 2 . Power . | . . . . . . . . . . Propulsion 3 | . . . . . 2 . . 1 . Utility 7 | . . . . . 2 2 2 1 . Weapon . | . . . . . . . . . . Parts Attached 70 | 6 5 1 3 2 21 9 7 8 8 Power 8 | 1 1 . . . 3 1 1 1 . Engine 6 | 1 . . . . 3 1 1 . . Core 2 | . 1 . . . . . . 1 . Reactor . | . . . . . . . . . . Propulsion 17 | 2 1 . . . 6 3 . 1 4 Treads 5 | 2 1 . . . 2 . . . . Leg . | . . . . . . . . . . Wheel . | . . . . . . . . . . Hover . | . . . . . . . . . . Flight 12 | . . . . . 4 3 . 1 4 Utility 30 | 1 2 . 1 . 6 5 6 6 3 Device 9 | . . . . . 1 3 2 3 . Storage 2 | 1 1 . . . . . . . . Processor 2 | . 1 . 1 . . . . . . Hackware 7 | . . . . . 2 . 2 . 3 Protection 10 | . . . . . 3 2 2 3 . Artifact . | . . . . . . . . . . Weapon 15 | 2 1 1 2 2 6 . . . 1 Energy Gun 3 | 1 1 . . . 1 . . . . Energy Cannon 4 | . . 1 1 2 . . . . . Ballistic Gun 3 | 1 . . . . 2 . . . . Ballistic Cannon . | . . . . . . . . . . Launcher 1 | . . . . . 1 . . . . Special Weapon 3 | . . . 1 . 1 . . . 1 Impact Weapon . | . . . . . . . . . . Slashing Weapon 1 | . . . . . 1 . . . . Piercing Weapon . | . . . . . . . . . . Special Melee Weapon . | . . . . . . . . . . Unidentified Prototypes 4 | . . . 3 . . . . 1 . Parts Lost 27 | . 2 1 . 2 3 3 . 3 13 Power 2 | . . . . 1 . 1 . . . Propulsion 11 | . 1 . . 1 2 2 . . 5 Utility 10 | . . . . . 1 . . 3 6 Weapon 4 | . 1 1 . . . . . . 2 Highest Loss Streak 13 | . 1 1 . 2 1 3 . 1 13 To Critical Strikes 1 | . 1 . . . . . . . . Average Slot Usage (%) 86 | . 91 100 93 77 79 98 93 81 82 Engine 3 | . 1 . . . 9 6 6 4 . Core 6 | . 12 14 14 3 . . . . 4 Treads 17 | . 28 28 28 17 10 . . . . Flight 5 | . . . . . 6 29 26 23 20 Device 3 | . . . . . . 18 23 24 14 Storage 10 | . 14 14 14 14 8 . . . . Processor 10 | . 8 14 14 14 9 7 6 5 5 Hackware 5 | . . . . . 9 15 18 13 24 Protection 2 | . . . . . 8 3 3 1 1 Energy Gun 7 | . 21 17 7 . 4 . . . . Energy Cannon 9 | . . 10 14 28 4 . . . . Ballistic Gun 2 | . 3 . . . 5 . . . . Slashing Weapon 1 | . . . . . . 7 6 5 4 Naked Turns . | . . . . . . . . . . Heaviest Build 67 | 11 48 50 67 53 61 17 18 23 29 Greatest Support 40 | 40 40 40 40 40 40 19 19 28 31 Greatest Overweight (x) 15 | . 1 1 1 2 15 . . . 1 Average Overweight (x) . | . . 1 1 1 2 . . . . Largest Inventory Capacity 20 | 8 20 20 20 20 20 5 5 5 5 Average Capacity 17 | 7 19 20 20 20 19 5 5 5 5 Most Carried 20 | 1 20 20 20 20 20 5 5 5 5 Average Carried 14 | . 9 19 19 19 18 4 4 4 4 Final Capacity 20 | 8 20 20 20 20 5 5 5 5 5 Final Carried 20 | 1 20 19 20 20 5 5 5 5 5 Class Distribution -------------------- 72% | Mutant 11% | Scavenger-Mutant 8% | Hacker-Sprinter 5% | Scavenger-Sprinter 3% | Hacker-Mutant Dominant Class ---------------- Mutant | -10/Materials Mutant | -10/Mines Mutant | -10/Exiles Mutant | -9/Mines Scavenger-Mutant | -8/Materials Scavenger-Sprinter | -7/Factory Hacker-Sprinter | -6/Factory Hacker-Sprinter | -5/Factory Hacker-Mutant | -5/Extension Resources | -11 -10 -10 -10 -9 -8 -7 -6 -5 -5 ----------- Run | Yrd Mat Min Exi Min Mat Fac Fac Fac Ext Matter Collected 1106 | 221 220 10 . 56 281 15 21 183 99 Remotely . | . . . . . . . . . . Salvage Created 1378 | . 651 81 . 136 474 15 21 . . Parts 93 | . 40 7 . 5 39 1 1 . . Haulers Intercepted 2 | . 1 . . . 1 . . . . Recyclers Shooed 8 | 1 4 . . 1 2 . . . . Parts Field Recycled . | . . . . . . . . . . Retrieved Matter . | . . . . . . . . . . Parts Self-Destructed . | . . . . . . . . . . Prevented . | . . . . . . . . . . Kills | -11 -10 -10 -10 -9 -8 -7 -6 -5 -5 ------- Run | Yrd Mat Min Exi Min Mat Fac Fac Fac Ext Combat Hostiles Destroyed 29 | . 8 6 . 3 12 . . . . Guns 13 | . 6 3 . . 4 . . . . Cannons 9 | . . 3 . 3 3 . . . . AOE 7 | . 2 . . . 5 . . . . Classes Destroyed 11 | . 9 . . . 2 . . . . Worker 3 | . 2 . . . 1 . . . . Builder 1 | . 1 . . . . . . . . Tunneler 1 | . 1 . . . . . . . . Hauler 2 | . 1 . . . 1 . . . . Recycler 6 | . 3 . . 1 2 . . . . Operator 4 | . 2 . . . . 1 1 . . Watcher 2 | . 1 . . . 1 . . . . Swarmer 18 | . 2 6 . 3 7 . . . . Grunt 9 | . 6 . . . 3 . . . . Duelist 1 | . . . . . 1 . . . . Sentry 1 | . . . . . 1 . . . . Best Kill Streak 7 | . 5 3 . 3 7 1 1 . . Combat Bots Only 5 | . 3 3 . 2 5 . . . . Max Kills in Single Turn 4 | . 3 1 . 1 4 1 1 . . Gunslinging 1 | . . . . . 1 . . . . Exploded 3 | . 1 . . . 3 . . . . Melee . | . . . . . . . . . . Uniques/NPCs Destroyed . | . . . . . . . . . . Combat | -11 -10 -10 -10 -9 -8 -7 -6 -5 -5 -------- Run | Yrd Mat Min Exi Min Mat Fac Fac Fac Ext Hostile Shots Fired 458 | . 61 43 . 35 65 65 15 24 150 Missed 183 | . 17 12 . 6 13 40 10 13 72 Damage Taken 3807 | . 515 237 . 229 736 285 89 222 1494 Core 1403 | . 94 47 . 51 100 59 36 58 958 Absorbed by Shields 21 | . . . . . . . . . 21 Redirected to Shielding 16 | . . . . . . 16 . . . Core Remaining (%) 78 | 100 . . . 23 81 91 95 . . Volleys Fired 118 | . 58 17 . 9 34 . . . . Largest 2 | . 2 2 . 2 2 . . . . Hottest 136 | . 90 108 . 136 136 . . . . Shots Fired 202 | . 99 27 . 16 60 . . . . Gun 146 | . 99 18 . . 29 . . . . Cannon 49 | . . 9 . 16 24 . . . . Launcher 7 | . . . . . 7 . . . . Special . | . . . . . . . . . . Kinetic 49 | . 28 . . . 21 . . . . Thermal 146 | . 71 27 . 16 32 . . . . Explosive 7 | . . . . . 7 . . . . Electromagnetic . | . . . . . . . . . . Robot Hit Streak 12 | . 12 4 . 1 5 . . . . Robot Miss Streak 7 | . 4 4 . 3 7 . . . . Penetration Max . | . . . . . . . . . . Secondary Targets 4 | . 1 2 . . 1 . . . . Max Gunslinging Chain 1 | . 1 1 . . 1 . . . . Shots Hit Robots 115 | . 64 13 . 5 29 1 3 . . Core Hits 70 | . 34 6 . 6 23 . 1 . . Critical Kills . | . . . . . . . . . . Critical Parts Destroyed . | . . . . . . . . . . Critical Strikes 5 | . 5 . . . . . . . . Burn 5 | . 5 . . . . . . . . Melee Attacks 18 | . . . . . . 6 6 6 . Impact . | . . . . . . . . . . Slashing 18 | . . . . . . 6 6 6 . Piercing . | . . . . . . . . . . Sneak Attacks . | . . . . . . . . . . Combat Hostiles . | . . . . . . . . . . Follow-up Attacks . | . . . . . . . . . . Damage Inflicted 2579 | 1 945 206 . 150 1075 60 142 . . Guns 1039 | . 697 103 . . 239 . . . . Cannons 533 | . . 103 . 143 287 . . . . Explosions 794 | . 245 . . . 549 . . . . Melee 202 | . . . . . . 60 142 . . Ramming 11 | 1 3 . . 7 . . . . . Kinetic 302 | . 150 . . . 152 . . . . Thermal 1284 | . 561 206 . 143 374 . . . . Explosive 549 | . . . . . 549 . . . . Electromagnetic 231 | . 231 . . . . . . . . Impact . | . . . . . . . . . . Slashing 202 | . . . . . . 60 142 . . Piercing . | . . . . . . . . . . Highest Corruption 2 | . 1 1 1 1 . . . 2 2 Average Corruption 1 | . 1 1 1 1 . . . 1 2 Corruption Purged . | . . . . . . . . . . Corruption Blocked . | . . . . . . . . . . Effects 20 | . 6 2 4 7 . . . . 1 Message Errors 6 | . 3 . . 3 . . . . . Matter Fused 3 | . 1 . . 2 . . . . . Heat Flow Errors 3 | . 1 . 1 1 . . . . . Energy Discharges 4 | . . 1 3 . . . . . . Data Loss (minor) 2 | . . 1 . . . . . . 1 Misfires 1 | . 1 . . . . . . . . Alerts 1 | . . . . 1 . . . . . Overload Shots . | . . . . . . . . . . Overflow Damage 81 | . 6 . . . 5 50 20 . . Projectiles . | . . . . . . . . . . Explosions 11 | . 6 . . . 5 . . . . Melee 70 | . . . . . . 50 20 . . Knockbacks . | . . . . . . . . . . Impact . | . . . . . . . . . . Kinetic . | . . . . . . . . . . Secondary . | . . . . . . . . . . Self-Inflicted Damage 41 | . 41 . . . . . . . . Shots 1 | . 1 . . . . . . . . Rammed 6 | 1 1 . . 3 1 . . . . Targets Rammed 6 | 1 1 . . 3 1 . . . . Kicked . | . . . . . . . . . . Crushed . | . . . . . . . . . . Highest Temperature 418 | . 353 270 240 418 331 4 . . . Average Temperature 122 | . 106 97 129 184 139 4 . . . Received Heat Transfer 888 | . 225 . . . 315 42 . 27 279 Effects 5 | . 2 . . 3 . . . . . Energy Bleed 1 | . . . . 1 . . . . . Interference 4 | . 2 . . 2 . . . . . Siege Activations . | . . . . . . . . . . Robots Corrupted . | . . . . . . . . . . Combat Hostiles . | . . . . . . . . . . Parts Fried . | . . . . . . . . . . Impact Corruptions . | . . . . . . . . . . Robots Melted . | . . . . . . . . . . Combat Hostiles . | . . . . . . . . . . Parts Melted 5 | . 3 1 . . 1 . . . . Heat Transferred 3397 | . 1965 470 . 259 703 . . . . Parts Sabotaged . | . . . . . . . . . . Parts Stolen . | . . . . . . . . . . Parts Stripped . | . . . . . . . . . . Power Chain Reactions 1 | . 1 . . . . . . . . Alert | -11 -10 -10 -10 -9 -8 -7 -6 -5 -5 ------- Run | Yrd Mat Min Exi Min Mat Fac Fac Fac Ext Peak Influence 287 | . 287 145 . 40 177 185 47 115 176 Initial 56 | . . . . . . 22 . 22 56 Average 59 | . 92 118 . 7 64 63 27 56 85 Maximum Alert Level 1 | . 1 . . . . . . . . Low Security (%) 97 | 100 89 100 . 100 100 100 100 100 100 Level 1 2 | . 10 . . . . . . . . Level 2 . | . . . . . . . . . . Level 3 . | . . . . . . . . . . Level 4 . | . . . . . . . . . . Level 5 . | . . . . . . . . . . High Security . | . . . . . . . . . . Max Security . | . . . . . . . . . . Squads Dispatched 8 | . 3 . . . 1 . 2 . 2 Investigation 2 | . 1 . . . . . . . 1 Extermination . | . . . . . . . . . . Reinforcement 6 | . 2 . . . 1 . 2 . 1 Assault . | . . . . . . . . . . Garrison . | . . . . . . . . . . Intercept . | . . . . . . . . . . Searches Triggered . | . . . . . . . . . . Construction Impeded 1 | . . . . . 1 . . . . Haulers Reinforced . | . . . . . . . . . . Active Scanning Responses . | . . . . . . . . . . Cargo Convoy Interrupts . | . . . . . . . . . . Stealth | -11 -10 -10 -10 -9 -8 -7 -6 -5 -5 --------- Run | Yrd Mat Min Exi Min Mat Fac Fac Fac Ext Distress Signals 4 | . 2 . . . 2 . . . . Communications Jammed 3 | . . . . . . . . 3 . Distress Signals 3 | . . . . . . . . 3 . Times Spotted 110 | . 20 6 . 3 16 20 3 10 32 Peak Tracking Total 17 | . 5 3 . 2 6 8 2 7 17 Tactical Retreats 15 | . 1 1 . . . 6 . 2 5 Traps | -11 -10 -10 -10 -9 -8 -7 -6 -5 -5 ------- Run | Yrd Mat Min Exi Min Mat Fac Fac Fac Ext Traps Triggered 3 | . 1 . . . . . 1 . 1 Indirectly 1 | . 1 . . . . . . . . Trap Hack Attempts . | . . . . . . . . . . Triggered . | . . . . . . . . . . Disarmed . | . . . . . . . . . . Reprogrammed . | . . . . . . . . . . Reused . | . . . . . . . . . . Traps Extracted . | . . . . . . . . . . Installed . | . . . . . . . . . . Triggered . | . . . . . . . . . . Machines | -11 -10 -10 -10 -9 -8 -7 -6 -5 -5 ---------- Run | Yrd Mat Min Exi Min Mat Fac Fac Fac Ext Machines Disabled 3 | . 3 . . . . . . . . Max in Single Turn 2 | . 2 . . . . . . . . Garrison Access 1 | . . . . . . . 1 . . Machines Repaired . | . . . . . . . . . . Machines Dismantled . | . . . . . . . . . . Machines Sabotaged . | . . . . . . . . . . Overloaded Fab Kills . | . . . . . . . . . . Hacking | -11 -10 -10 -10 -9 -8 -7 -6 -5 -5 --------- Run | Yrd Mat Min Exi Min Mat Fac Fac Fac Ext Machines Accessed 22 | . 4 . 1 . 2 5 4 3 3 Terminals 19 | . 4 . . . 2 4 3 3 3 Fabricators . | . . . . . . . . . . Repair Stations . | . . . . . . . . . . Recycling Units . | . . . . . . . . . . Scanalyzers . | . . . . . . . . . . Garrison Access 2 | . . . . . . 1 1 . . Total Hacks 68 | . 8 . 9 . 7 13 10 14 7 Successful 34 | . 3 . 9 . 4 5 5 2 6 Failed 34 | . 5 . . . 3 8 5 12 1 Catastrophic 8 | . 1 . . . . 3 2 2 . Database Lockouts . | . . . . . . . . . . Manual 47 | . 8 . 1 . 3 11 9 13 2 Terminals 57 | . 8 . . . 7 12 9 14 7 Fabricators . | . . . . . . . . . . Repair Stations . | . . . . . . . . . . Recycling Units . | . . . . . . . . . . Scanalyzers . | . . . . . . . . . . Garrison Access 2 | . . . . . . 1 1 . . Terminal Hacks 23 | . 1 . 9 . 3 4 1 1 4 Record 13 | . . . 9 . . 1 . 1 2 Part Schematic 1 | . . . . . . . 1 . . Open Door 2 | . . . . . . . . . 2 Level Access Points 1 | . . . . . . 1 . . . Unreport Threat 4 | . 1 . . . 1 2 . . . Dispatch Records 1 | . . . . . 1 . . . . Hauler Manifests 1 | . . . . . 1 . . . . Fabricator Hacks . | . . . . . . . . . . Repair Station Hacks . | . . . . . . . . . . Recycling Unit Hacks . | . . . . . . . . . . Scanalyzer . | . . . . . . . . . . Garrison Access Hacks 1 | . . . . . . . 1 . . Seal Access 1 | . . . . . . . 1 . . Unauthorized Hacks 10 | . 2 . . . 1 1 3 1 2 Terminals 10 | . 2 . . . 1 1 3 1 2 Assimilate 1 | . . . . . . . . . 1 Botnet 9 | . 2 . . . 1 1 3 1 1 Fabricators . | . . . . . . . . . . Repair Stations . | . . . . . . . . . . Recycling Units . | . . . . . . . . . . Scanalyzers . | . . . . . . . . . . Garrison Access . | . . . . . . . . . . Data Cores Recovered 1 | . . . . . . 1 . . . Used 1 | . . . . . . 1 . . . Hacking Detections 17 | . 3 . . . 2 4 3 3 2 Full Trace Events 1 | . . . . . . . . . 1 Feedback Events . | . . . . . . . . . . Feedback Blocked . | . . . . . . . . . . Robot Schematics Acquired . | . . . . . . . . . . Robots Built . | . . . . . . . . . . Authchips . | . . . . . . . . . . Time . | . . . . . . . . . . Total Robot Build Rating . | . . . . . . . . . . Part Schematics Acquired 1 | . . . . . . . 1 . . Parts Built . | . . . . . . . . . . Authchips . | . . . . . . . . . . Time . | . . . . . . . . . . Total Part Build Rating . | . . . . . . . . . . Parts Repaired . | . . . . . . . . . . Time . | . . . . . . . . . . Parts Recycled . | . . . . . . . . . . Recycled Matter . | . . . . . . . . . . Retrieved Matter . | . . . . . . . . . . Retrieved Components . | . . . . . . . . . . Parts Scanalyzed . | . . . . . . . . . . Part Schematics Acquired . | . . . . . . . . . . Parts Damaged . | . . . . . . . . . . Bothacking | -11 -10 -10 -10 -9 -8 -7 -6 -5 -5 ------------ Run | Yrd Mat Min Exi Min Mat Fac Fac Fac Ext Used RIF Installer . | . . . . . . . . . . Robots Hacked . | . . . . . . . . . . Non-combat . | . . . . . . . . . . Combat . | . . . . . . . . . . Robot Hacks Applied . | . . . . . . . . . . Relay Couplers Released . | . . . . . . . . . . Fabnet Peak Effective % . | . . . . . . . . . . Robots Rewired . | . . . . . . . . . . Allies Hacked . | . . . . . . . . . . Hacks Repelled . | . . . . . . . . . . Allies | -11 -10 -10 -10 -9 -8 -7 -6 -5 -5 -------- Run | Yrd Mat Min Exi Min Mat Fac Fac Fac Ext Total Allies 2 | . . . . . . . . . 2 Largest Group 1 | . . . . . . . . . 1 Highest-Rated Group 20 | . . . . . . . . . 20 Highest-Rated Ally 20 | . . . . . . . . . 20 Total Orders . | . . . . . . . . . . Ally Attacks 1 | . . . . . . . . . 1 Total Damage . | . . . . . . . . . . Kills . | . . . . . . . . . . Allies Corrupted . | . . . . . . . . . . Allies Melted . | . . . . . . . . . . Intel | -11 -10 -10 -10 -9 -8 -7 -6 -5 -5 ------- Run | Yrd Mat Min Exi Min Mat Fac Fac Fac Ext Robot Analysis Total . | . . . . . . . . . . Derelict Logs Recovered 2 | . . 1 . 1 . . . . . Drone Launches . | . . . . . . . . . . Drone Recoveries . | . . . . . . . . . . Exploration | -11 -10 -10 -10 -9 -8 -7 -6 -5 -5 ------------- Run | Yrd Mat Min Exi Min Mat Fac Fac Fac Ext Turns Passed 4733 | 79 1022 296 552 951 1053 199 199 180 202 Spaces Moved 3359 | 47 360 105 228 308 261 544 597 478 431 Core 65 | 6 . . . . . . . . 59 Treads 1266 | 41 360 105 228 308 224 . . . . Legs . | . . . . . . . . . . Wheels . | . . . . . . . . . . Hover . | . . . . . . . . . . Flight 2028 | . . . . . 37 544 597 478 372 Fastest Speed 28 | 50 160 240 240 240 31 28 28 28 29 Average Speed 120 | 145 231 240 240 297 302 29 28 28 36 Slowest Speed 1260 | 160 240 240 240 320 1260 34 28 37 120 Overloaded Moves . | . . . . . . . . . . Propulsion Burnouts . | . . . . . . . . . . Robots Hopped 24 | . . . . . . 5 . 10 9 Cave-ins Triggered . | . . . . . . . . . . Exploration Rate (%) 37 | 4 69 33 43 77 33 20 18 19 61 Regions Visited 9 Branch Regions 4 Pre-discovered Areas 1 | . . 1 . . . . . . . Known Exits Taken 2 | . . . . . 1 1 . . . Unknown Exits Taken 7 | 1 1 1 1 1 . . 1 1 . Scrap Searched 2 | . . . . 2 . . . . . Spaces Dug 13 | . . . . . . 5 2 6 . Terrain Destroyed 34 | . 1 . . . 20 5 2 6 . Melee 13 | . . . . . . 5 2 6 . Projectile . | . . . . . . . . . . AOE 21 | . 1 . . . 20 . . . . Terrain Rammed . | . . . . . . . . . . Walls Destroyed . | . . . . . . . . . . Machines Disabled . | . . . . . . . . . . Actions | -11 -10 -10 -10 -9 -8 -7 -6 -5 -5 --------- Run | Yrd Mat Min Exi Min Mat Fac Fac Fac Ext Total 3808 | 54 454 123 234 323 465 566 621 501 467 Wait 166 | . 9 1 . . 122 3 . 16 15 Move 3306 | 46 359 104 227 307 260 533 596 460 414 Hop 20 | . . . . . . 5 . 7 8 Pick Up 46 | 1 20 . . 1 11 5 4 1 3 Fast Attach 30 | 6 3 . 3 . 6 2 2 4 4 Attach 27 | . 1 1 . 2 11 5 2 3 2 Detach 6 | . . . 1 . . 1 2 1 1 Swap 13 | . 1 . . . 4 2 3 1 2 Drop 42 | . 2 . 3 1 16 4 6 2 8 Fire 118 | . 58 17 . 9 34 . . . . Melee 18 | . . . . . . 6 6 6 . Ram . | . . . . . . . . . . Kick . | . . . . . . . . . . Crush 6 | 1 1 . . 3 1 . . . . Escape Stasis 10 | . . . . . . . . . 10 Rewire . | . . . . . . . . . . Trap . | . . . . . . . . . . Miscellaneous . | . . . . . . . . . . Route ------- -11/Scrapyard -10/Materials (discovered 3 exits: [*Mat] / [*Min x2]) -10/Mines -10/Exiles -9/Mines -8/Materials (discovered 2 exits: *Fac x2) -7/Factory (discovered 4 exits: *Fac x4) -6/Factory (discovered 2 exits: *Fac / [*Low]) -5/Factory (discovered 2 exits: [*Upp] / *Ext) -5/Extension History --------- Turn | Location | Event 3 | -11/Scrapyard | Discovered new exit (range 15) 80 | -11/Scrapyard | Entered Materials 307 | -10/Materials | Build established: Mutant 740 | -10/Materials | Discovered new exit (range 17) 1003 | -10/Materials | Discovered new exit (range 14) 1008 | -10/Materials | Discovered new exit (range 9) 1102 | -10/Materials | Entered Mines 1138 | -10/Mines | Met a Derelict bent on vengeance 1171 | -10/Mines | Core integrity fell below 50% 1268 | -10/Mines | Assembled infested the area 1303 | -10/Mines | Met 8R-AWN 1386 | -10/Mines | Discovered new exit (range 5) 1398 | -10/Mines | Entered Exiles 1434 | -10/Exiles | Discovered new exit (range 16) 1463 | -10/Exiles | Welcomed by 8R-AWN 1502 | -10/Exiles | Met EX-HEX 1566 | -10/Exiles | Met EX-BIN 1607 | -10/Exiles | Aligned with FarCom system 1610 | -10/Exiles | Given EX-Vault access code 1689 | -10/Exiles | Opened EX-Vault 1701 | -10/Exiles | Found Prototype Special Weapon 1701 | -10/Exiles | Identified Field Lobotomy Kit 1709 | -10/Exiles | Found Prototype Energy Cannon 1709 | -10/Exiles | Identified Firepult 1713 | -10/Exiles | Found Prototype Processor 1713 | -10/Exiles | Identified 0b10 Alert Chip 1763 | -10/Exiles | Warned to stay clear of 0b10 Research branches 1861 | -10/Exiles | Learned about 8R-AWN's background 1950 | -10/Exiles | Stole three prototypes: 0b10 Alert Chip, Firepult, Field Lobotomy Kit 1950 | -10/Exiles | Entered Mines 2189 | -9/Mines | Found a hidden stash of uninstalled traps 2331 | -9/Mines | Learned 8 Materials zone layouts 2865 | -9/Mines | Discovered new exit (range 11) 2901 | -9/Mines | Entered Materials 2901 | -8/Materials | Evolved 4 slots: Propulsion x2, Utility x2 2902 | -8/Materials | Identified exit to Factory 3953 | -8/Materials | Discovered exit to Factory (range 5) 3954 | -8/Materials | Entered Factory 3954 | -7/Factory | Evolved 2 slots: Utility x2 3956 | -7/Factory | FarCom data flow suspended 4103 | -7/Factory | Lost 3 parts (1p2n) 4119 | -7/Factory | Identified exit to Factory 4153 | -7/Factory | Entered another Factory area 4153 | -6/Factory | Evolved 2 slots: Utility x2 4295 | -6/Factory | Discovered new exit (range 16) 4344 | -6/Factory | Discovered new exit (range 4) 4352 | -6/Factory | Entered another Factory area 4352 | -5/Factory | Evolved 2 slots: Propulsion x1, Utility x1 4453 | -5/Factory | Discovered new exit (range 14) 4527 | -5/Factory | Discovered new exit (range 14) 4532 | -5/Factory | Entered Extension 4544 | -5/Extension | Build established: Hacker-Sprinter 4579 | -5/Extension | Spotted B-75 Beast 4655 | -5/Extension | Rescued a captive Derelict 4697 | -5/Extension | Spotted B-75 Beast 4712 | -5/Extension | Core integrity fell below 50% 4725 | -5/Extension | Core integrity fell below 20% 4734 | -5/Extension | Destroyed by H-66 Slayer with Gauss Rifle Last Messages --------------- Sealed Heavy Doors opened. Machine disabled. K-01 Serf destroyed. Penetrated by Slug. Xenon Bombardment Thruster destroyed. Critical hit (Burn: +37). Machine disabled. Penetrated by Slug. Hacking Suite destroyed. Critical hit (Burn: +37). Xenon Bombardment Thruster destroyed. Slug penetrates Machine. Penetrated by Slug. Exp. Heat Sink destroyed. Imp. System Shield destroyed. Katana destroyed. Penetrated by Slug. Hacking Suite destroyed. Slug penetrates Wall. Penetrated by Slug. Map ----- +----------------------------------------------------+ | ?????????????????????????????????????????????????? | | ?????????????????????????????????????????????????? | | ?????????????????????????????????????????????????? | | ?????????????????????????????????????????????????? | | ?????????????????????????????????????????????????? | | ?????????????????????????????????????????????????? | | ?????????????????????????????????????????????????? | | ?????????????????????????????????????????????????? | | ?????????????????????????????????????????????????? | | ?????????????????????????????????????????????????? | | ?????????????????????????????????????????????????? | | ?????????????????????????????????????????????????? | | ?????????????????????????????????????????????????? | | ?????????????????????????????????????????????????? | | ?????????????????????????????????????????????????? | | ?????????????????????????????????????????????????? | | ?????????????????????????????????????????????????? | | ?????????????????????????????????????????????????? | | ?????????????????????????????????????????????????? | | ?????????????????????????????????????????????????? | | ?????????????????????????????????????????????????? | | ?????????????????????????????????????????????????? | | ?????????????????????????????????????????????????? | | ?????????????????????????????????????????????????? | | ##################################???????????????? | | @ ????????? | | ????????? | | u ????????? | | ?????????? | | R ku?????????? | | #######################################??????????? | | ?????????????????????????????????????????????????? | | ?????????????????????????????????????????????????? | | ?????????????????????????????????????????????????? | | ?????????????????????????????????????????????????? | | ?????????????????????????????????????????????????? | | ?????????????????????????????????????????????????? | | ?????????????????????????????????????????????????? | | | | | | | | | | | | | | | | | | | | | | | | | +----------------------------------------------------+ Best States ------------- Heat Dissipation 66 Energy Generation 18 Energy Capacity 265 Matter Stores 300 Matter Capacity 300 Sight Range 18 Terrain Scan Density 10 Jamming Range 12 Armor Coverage 225 Propulsion Shielding 66 Utility Shielding 66 Evasion (%) 74 Recoil Reduction 2 Offensive Hacking 40 Defensive Hacking 12 Item Schematics ----------------- Cld. VTOL Module | -6/Factory | Hacked Robot Schematics ------------------ None Fabricated ------------ Nothing Alien Tech Used ----------------- None Achievements -------------- No Signal Challenges ------------ None Game ------ Seed ShockCorruptionStripper Manual? 0 Play Time 00:59:55 Cumulative 15.9 hours Start 2024.04.09 @ 09:51:13 End 2024.04.09 @ 10:59:49 Sessions 1 Manual Loads 0 Difficulty Rogue Special Mode None Game No. 25 Rogue 25 Adventurer 0 Explorer 0 Win Type - Total 0 Types 0/0/0/0/0/0/0/0/0 Lore% 16 Gallery% 31 Achievement% 28 Wizard Run 0 Options --------- Layout 1 ASCII 0 Keyboard 0 Movement Numpad Keybinds 0 Fullscreen 1 Font 24/Smallcaps Map View 50x35 Zoom Use 0% Tactical HUD 0 Map Filters NONE Filters NONE Steam 1 RUN: 95e6b87b-34a0-4da5-ab30-3fa7ae41b6e5